[Event "NED-ch U16 Youth 2019"]
[Site "Assen"]
[Date "2019.04.29"]
[Round "2.3"]
[White "Maters, Arthur"]
[Black "Shakhverdian, William"]
[Result "1-0"]
[ECO "C25"]
[WhiteElo "2043"]
[BlackElo "1949"]
[Annotator "NA RC"]
[PlyCount "71"]
[EventDate "2019.04.28"]
[EventType "swiss"]
[EventCountry "NED"]
[SourceTitle "playchess.com"]
[Source "ChessBase"]
[SourceQuality "1"]
[TimeControl "40/5400+30:1800+30"]

1. e4 {[%emt 0:00:00]} e5 {[%emt 0:00:00]} 2. Bc4 {[%emt 0:00:00]} Bc5 {[%emt 0:00:41]} 3. d3 {[%emt 0:00:00]} Nc6 {[%emt 0:00:24]} 4. Nc3 {[%emt 0:00:00]} d6 {[%emt 0:00:20]} 5. Qh5 {[%emt 0:00:00]} (5. Nge2 Nf6 6. O-O O-O 7. Na4 Na5 8. Nxc5 dxc5 9. Nc3 Nxc4 10. dxc4 h6 11. Be3 b6 12. Qf3 c6 13. Qg3 Qd6 14. Rad1 Qe6 {½-½ (106) Paichadze,L (2583)-Nihal,S (2578) chess.com INT 2019}) 5... g6 {[%emt 0:03:29]} 6. Qd1 {[%emt 0:00:01] C25: Vienna Game: Alternatives to 2...Nf6} h6 $146 {[%emt 0:08:45]} ({Predecessor:} 6... Qf6 7. Nf3 Bg4 8. Nd5 Qd8 9. h3 Be6 10. Bg5 Qd7 11. Nf6+ Nxf6 12. Bxf6 {0-1 (60) Shapiro,D (1238)-Sarian,G (1143) Willingen 2018}) 7. Nf3 {[%emt 0:00:44]} Be6 {[%emt 0:01:13]} 8. Bxe6 {[%emt 0:01:07]} fxe6 {[%emt 0:00:17]} 9. Na4 {[%emt 0:03:21]} Bb6 {[%emt 0:01:20]} 10. O-O {[%emt 0:00:47]} Qf6 {[%emt 0:01:32]} 11. Nxb6 {[%emt 0:01:20]} axb6 {[%emt 0:00:13]} 12. Be3 {[%emt 0:00:19]} Nge7 {[%emt 0:00:39]} 13. d4 {[%emt 0:06:16]} exd4 {[%emt 0:00:21]} 14. Nxd4 {[%emt 0:00:07]} Nxd4 {[%emt 0:00:53]} 15. Bxd4 {[%emt 0:00:08]} e5 {[%emt 0:00:05]} 16. Bc3 {[%emt 0:01:25]} g5 {[%emt 0:01:00]} 17. a4 {[%emt 0:05:25]} h5 {[%emt 0:15:59]} 18. a5 {[%emt 0:03:24]} bxa5 {[%emt 0:00:36]} 19. Bxa5 {[%emt 0:00:24]} b6 {[%emt 0:01:22]} 20. Bd2 {[%emt 0:01:53]} Rxa1 {[%emt 0:04:54]} 21. Qxa1 {[%emt 0:00:25]} Ng6 {[%emt 0:07:55]} ({Black should try} 21... Kd7 $11) 22. Qa4+ {[%emt 0:03:26]} (22. Qa7 $5 {[%cal Ra7c7]}) 22... Ke7 {[%emt 0:03:48]} 23. Qc6 {[%emt 0:01:24]} Rc8 {[%emt 0:00:46]} 24. Be3 {[%emt 0:00:40]} Kd8 {[%emt 0:01:19]} 25. Rd1 {[%emt 0:01:56]} Ne7 {[%emt 0:01:20]} 26. Qb5 {[%emt 0:03:03]} Rb8 {[%emt 0:02:30]} ({Better is} 26... g4 $14) 27. c4 {[%emt 0:01:56]} Kc8 {[%emt 0:02:44]} 28. b4 {[%emt 0:05:15]} Qg6 {[%emt 0:03:56]} (28... Qe6 $16 29. Qa4 (29. Bxg5 Qg4 $11) 29... g4) 29. Qa4 {[%emt 0:09:28]} Kd8 {[%emt 0:02:16]} 30. c5 {[%emt 0:02:50]} Nc8 {[%emt 0:00:50]} 31. Qc6 {[%emt 0:03:00]} bxc5 {[%emt 0:08:05]} 32. bxc5 {[%emt 0:01:04]} Qg7 {[%emt 0:11:44]} 33. cxd6 {[%emt 0:06:19]} cxd6 {[%emt 0:00:33]} 34. Bd2 {[%emt 0:00:17]} Rb6 {[%emt 0:11:19]} 35. Ba5 {[%emt 0:00:08]} Qb7 {[%emt 0:01:15]} 36. Qxb7 {[%emt 0:00:07] Pin} 1-0

[Event "NED-ch U16 Youth 2019"]
[Site "Assen"]
[Date "2019.04.29"]
[Round "2.4"]
[White "Grutter, Tim"]
[Black "Honkoop, Gilian"]
[Result "1-0"]
[ECO "C54"]
[WhiteElo "2029"]
[BlackElo "2038"]
[Annotator "NA RC"]
[PlyCount "85"]
[EventDate "2019.04.28"]
[EventType "swiss"]
[EventCountry "NED"]
[SourceTitle "playchess.com"]
[Source "ChessBase"]
[SourceQuality "1"]
[TimeControl "40/5400+30:1800+30"]

1. e4 {[%emt 0:00:00]} e5 {[%emt 0:00:00]} 2. Nf3 {[%emt 0:00:00]} Nc6 {[%emt 0:00:00]} 3. Bc4 {[%emt 0:00:00]} Nf6 {[%emt 0:00:00]} 4. d3 {[%emt 0:00:00]} Bc5 {[%emt 0:00:00]} 5. O-O {[%emt 0:00:00]} d6 {[%emt 0:00:06]} 6. Nbd2 {[%emt 0:00:36]} a6 {[%emt 0:01:43]} 7. c3 {[%emt 0:00:06]} Ba7 {[%emt 0:00:39]} 8. Bb3 {[%emt 0:00:04]} Be6 {[%emt 0:03:35]} 9. Re1 {[%emt 0:03:55]} O-O {[%emt 0:00:16]} 10. h3 {[%emt 0:01:22] C54: Giuoco Piano: 4 c3 Nf6, main lines with 5 d4 and 5 d3} Ne7 {[%emt 0:00:19]} (10... Bxb3 11. Qxb3 Qd7 12. Nf1 b5 13. Bg5 Nh5 14. Rad1 h6 15. Be3 Bxe3 16. Nxe3 Nf4 17. d4 Rfe8 {0-1 (62) Lu,S (2636)-Tabatabaei,M (2587) Makati 2018}) 11. d4 {[%emt 0:05:02]} Ng6 {[%emt 0:05:09]} 12. Bxe6 {[%emt 0:01:39]} fxe6 {[%emt 0:00:07]} 13. dxe5 $146 {[%emt 0:00:19]} ({Predecessor:} 13. Qb3 Nf4 14. dxe5 dxe5 15. Nxe5 Nd7 16. Nxd7 Qg5 17. g3 Qxg3+ {0-1 (17) Karacsony,A (2301)-Vajda,L (2534) Hungary 2007}) 13... dxe5 {[%emt 0:03:56]} 14. Qb3 {[%emt 0:06:56]} Qe7 {[%emt 0:05:53]} 15. Nf1 {[%emt 0:13:21]} Nh5 {[%emt 0:12:59]} 16. N1h2 {[%emt 0:06:15]} Nhf4 {[%emt 0:13:54]} 17. Be3 {[%emt 0:16:07]} c6 {[%emt 0:11:21]} 18. Rad1 {[%emt 0:04:55]} b5 {[%emt 0:03:56]} ({Black should play} 18... Bxe3 $14 19. fxe3 Nh5) 19. c4 {[%emt 0:06:50]} Rad8 {[%emt 0:06:09]} 20. Qc2 {[%emt 0:06:23]} Bxe3 {[%emt 0:05:29]} 21. fxe3 {[%emt 0:00:37]} Qc5 {[%emt 0:00:22] [#]} (21... Rxd1 $14 22. Qxd1 Nh5) 22. b4 $18 {[%emt 0:02:17]} Qa7 {[%emt 0:00:11]} 23. c5 {[%emt 0:00:36]} Nh5 {[%emt 0:00:39]} 24. Rxd8 {[%emt 0:01:26]} Rxd8 {[%emt 0:00:10]} 25. Rd1 {[%emt 0:00:12]} Qc7 {[%emt 0:02:38]} 26. Ng4 {[%emt 0:02:01]} Rxd1+ {[%emt 0:06:18]} 27. Qxd1 {[%emt 0:00:01]} Nf6 {[%emt 0:00:10]} 28. Qb3 {[%emt 0:07:10]} Nf8 {[%emt 0:10:32]} 29. Ngxe5 {[%emt 0:01:26]} Nxe4 {[%emt 0:00:15]} 30. Qd3 {[%emt 0:00:43]} Nf6 {[%emt 0:04:41]} 31. Qd6 {[%emt 0:00:42]} Qxd6 {[%emt 0:00:29]} 32. cxd6 {[%emt 0:00:02]} Nd5 {[%emt 0:00:37]} 33. d7 {[%emt 0:00:52]} Nxd7 {[%emt 0:00:07]} 34. Nxd7 {[%emt 0:00:04]} Nxb4 {[%emt 0:00:05]} 35. Nc5 {[%emt 0:01:11]} Kf7 {[%emt 0:01:39]} 36. Nd4 {[%emt 0:01:12]} e5 {[%emt 0:01:00]} 37. a3 {[%emt 0:00:41]} exd4 {[%emt 0:01:26]} 38. axb4 {[%emt 0:00:15]} dxe3 {[%emt 0:00:38]} 39. Kf1 {[%emt 0:00:31]} Kf6 {[%emt 0:01:17]} 40. Ke2 {[%emt 0:00:10]} Ke5 {[%emt 0:00:08]} 41. Kxe3 {[%emt 0:30:13]} Kd5 {[%emt 0:30:04]} 42. Nxa6 {[%emt 0:00:15]} Kc4 {[%emt 0:00:47]} 43. Ke4 {[%emt 0:00:29] Kd5+ [%emt 00:01:03]} 1-0

[Event "NED-ch U16 Youth 2019"]
[Site "Assen"]
[Date "2019.04.29"]
[Round "2.5"]
[White "Roothaan, Elmar"]
[Black "Van der Schaaf, Tristan"]
[Result "1/2-1/2"]
[ECO "D02"]
[WhiteElo "1711"]
[BlackElo "1807"]
[Annotator "NA RC"]
[PlyCount "128"]
[EventDate "2019.04.28"]
[EventType "swiss"]
[EventCountry "NED"]
[SourceTitle "playchess.com"]
[Source "ChessBase"]
[SourceQuality "1"]
[TimeControl "40/5400+30:1800+30"]

1. d4 {[%emt 0:00:00]} Nf6 {[%emt 0:00:00]} 2. Nf3 {[%emt 0:00:00]} e6 {[%emt 0:00:00]} 3. g3 {[%emt 0:00:29]} d5 {[%emt 0:00:01]} 4. Bg2 {[%emt 0:00:00]} Be7 {[%emt 0:00:12]} 5. O-O {[%emt 0:00:00]} O-O {[%emt 0:00:04]} 6. Re1 {[%emt 0:00:25] D02: 1 d4 d5 2 Nf3 sidelines, including 2...Nf6 3 g3 and 2...Nf6 3 Bf4} (6. c4 dxc4 7. Qc2 a6 8. Qxc4 b5 9. Qc2 Bb7 10. Bd2 Be4 11. Qc1 Bb7 12. Rd1 Qc8 13. Ba5 c5 14. dxc5 Bxc5 15. Nbd2 Nbd7 16. Nb3 Ba7 17. Qf4 Nb6 18. Bxb6 Bxb6 19. Rac1 Qe8 20. Ne5 Bxg2 21. Kxg2 {½-½ (75) Ding,L (2813)-Radjabov,T (2757) Wijk aan Zee 2019}) 6... Nbd7 {[%emt 0:00:14]} 7. c3 {[%emt 0:00:46]} Ne4 $146 {[%emt 0:00:53]} ({Predecessor:} 7... c5 8. Nbd2 cxd4 9. cxd4 b6 10. e4 dxe4 11. Nxe4 Nxe4 12. Rxe4 Bb7 13. Re2 Nf6 14. Be3 Nd5 15. Rc1 Qd6 16. a3 {½-½ (42) Safar,I (1728)-Kratzmajer,A (1374) Budapest 2015}) 8. Bf4 {[%emt 0:01:21]} c5 {[%emt 0:03:57]} 9. h4 {[%emt 0:00:15]} Qb6 {[%emt 0:01:16]} 10. Qb3 {[%emt 0:00:27]} c4 {[%emt 0:00:43]} 11. Qc2 {[%emt 0:00:29]} h6 {[%emt 0:06:28]} 12. Nbd2 {[%emt 0:00:54]} g5 {[%emt 0:06:48]} 13. hxg5 {[%emt 0:01:35]} hxg5 {[%emt 0:00:15]} 14. Nxe4 {[%emt 0:01:07]} gxf4 {[%emt 0:03:56]} 15. Neg5 {[%emt 0:00:07]} f5 {[%emt 0:00:33]} 16. gxf4 {[%emt 0:00:43]} Nf6 {[%emt 0:02:40]} 17. Ne5 {[%emt 0:00:29]} Kg7 {[%emt 0:03:11]} 18. f3 {[%emt 0:00:58]} Nh5 {[%emt 0:03:32]} 19. e3 {[%emt 0:01:01]} Qd8 {[%emt 0:01:11]} 20. Kf2 {[%emt 0:01:16]} Bxg5 {[%emt 0:05:20]} 21. fxg5 {[%emt 0:00:09]} Qxg5 {[%emt 0:00:24]} 22. Rh1 {[%emt 0:00:39]} Qg3+ {[%emt 0:11:02]} 23. Kf1 {[%emt 0:00:05]} Qg5 {[%emt 0:00:40]} 24. Rh3 {[%emt 0:00:12]} f4 {[%emt 0:31:58]} 25. e4 $2 {[%emt 0:02:21]} (25. exf4 $18 {and the rest is easy.} Qf5 26. Qf2) 25... Kf6 {[%emt 0:03:33]} 26. Kf2 {[%emt 0:02:01]} Rg8 {[%emt 0:02:44]} 27. Ng4+ {[%emt 0:07:08]} Ke7 {[%emt 0:00:11]} 28. e5 {[%emt 0:02:30]} (28. exd5 $18 Nf6 29. Qe2) 28... Rh8 $2 {[%emt 0:01:06]} (28... Ng3 $16) 29. Rah1 {[%emt 0:01:18]} Bd7 {[%emt 0:00:36]} 30. Nf6 {[%emt 0:00:25]} Be8 {[%emt 0:00:47]} 31. b3 {[%emt 0:02:41]} (31. Bf1 $142) 31... Bg6 {[%emt 0:03:09]} 32. Qb2 {[%emt 0:04:56]} Bf5 {[%emt 0:04:15]} 33. Rxh5 {[%emt 0:00:41]} Qg3+ {[%emt 0:00:09]} 34. Kg1 {[%emt 0:04:58]} Qe1+ {[%emt 0:01:01]} 35. Bf1 {[%emt 0:00:08]} Rag8+ {[%emt 0:00:19]} 36. Ng4 $1 {[%emt 0:00:03]} Rxh5 {[%emt 0:03:37]} 37. Rxh5 {[%emt 0:04:05]} Bxg4 {[%emt 0:00:12]} 38. Rh7+ {[%emt 0:00:31]} Ke8 {[%emt 0:00:17]} 39. Qg2 {[%emt 0:01:01]} Qe3+ {[%emt 0:00:31]} 40. Kh2 {[%emt 0:00:11]} Qxf3 {[%emt 0:00:39]} 41. Qxf3 {[%emt 0:30:15]} Bxf3 {[%emt 0:30:07]} 42. Rxb7 {[%emt 0:00:32]} Rg3 {[%emt 0:00:00]} 43. Rxa7 {[%emt 0:00:00]} cxb3 {[%emt 0:00:00]} 44. axb3 {[%emt 0:00:00]} Bd1 $11 {[%emt 0:00:00]} 45. c4 {[%emt 0:00:00]} Bxb3 {[%emt 0:00:00]} 46. c5 {[%emt 0:00:00]} Rc3 {[%emt 0:00:00]} 47. c6 {[%emt 0:00:00]} Bc4 {[%emt 0:00:00]} 48. Ra8+ {[%emt 0:00:00]} Ke7 {[%emt 0:00:00]} 49. c7 {[%emt 0:00:00]} Bxf1 {[%emt 0:00:00]} 50. c8=Q {[%emt 0:00:00]} Rxc8 {[%emt 0:00:00]} 51. Rxc8 {[%emt 0:00:00]} f3 {[%emt 0:00:00]} 52. Rc7+ {[%emt 0:00:00]} Ke8 {[%emt 0:01:22]} 53. Kg3 {[%emt 0:00:00]} Be2 {[%emt 0:01:00]} 54. Rh7 {[%emt 0:00:00]} Kf8 {[%emt 0:01:21]} 55. Rh6 {[%emt 0:00:00]} Ke7 {[%emt 0:00:46]} 56. Rf6 {[%emt 0:00:00]} Kd7 {[%emt 0:00:56]} 57. Kh4 {[%emt 0:00:00]} Bd1 {[%emt 0:01:00]} 58. Kg3 {[%emt 0:00:00]} Be2 {[%emt 0:00:32]} 59. Rxf3 {[%emt 0:00:00]} Bxf3 {[%emt 0:00:33]} 60. Kxf3 {[%emt 0:00:00]} Kc6 {[%emt 0:00:05]} 61. Kg4 {[%emt 0:00:00]} Kb5 {[%emt 0:00:13]} 62. Kg5 {[%emt 0:00:00]} Kc4 {[%emt 0:00:10]} 63. Kf6 {[%emt 0:00:00]} Kxd4 {[%emt 0:00:19]} 64. Kxe6 {[%emt 0:00:00]} Kc4 {[%emt 0:00:34]} 1/2-1/2

[Event "NED-ch U16 Youth 2019"]
[Site "Assen"]
[Date "2019.04.29"]
[Round "2.6"]
[White "Albertus, Bram"]
[Black "Albers, Sasa"]
[Result "1/2-1/2"]
[ECO "E01"]
[WhiteElo "1887"]
[BlackElo "1690"]
[Annotator "NA RC"]
[PlyCount "107"]
[EventDate "2019.04.28"]
[EventType "swiss"]
[EventCountry "NED"]
[SourceTitle "playchess.com"]
[Source "ChessBase"]
[SourceQuality "1"]
[TimeControl "40/5400+30:1800+30"]

1. c4 {[%emt 0:00:00]} Nf6 {[%emt 0:00:00]} 2. g3 {[%emt 0:00:05]} e6 {[%emt 0:00:00]} 3. Bg2 {[%emt 0:00:26]} d5 {[%emt 0:00:00]} 4. Nf3 {[%emt 0:00:44]} c6 {[%emt 0:00:37]} 5. d4 {[%emt 0:01:44]} Nbd7 {[%emt 0:01:39]} 6. O-O {[%emt 0:08:52]} Bd6 {[%emt 0:02:17]} 7. Bf4 {[%emt 0:06:36] E01: Catalan: Early deviations} (7. Nfd2 e5 8. cxd5 cxd5 9. dxe5 Nxe5 10. Nc3 Be6 11. Qa4+ Nc6 12. e4 d4 13. Nd5 O-O 14. Nb3 d3 {½-½ (26) Grischuk,A (2761)-Radjabov,T (2784) Moscow 2012}) 7... Bxf4 {[%emt 0:00:42]} 8. gxf4 {[%emt 0:00:24]} Nf8 $146 {[%emt 0:00:30]} ({Predecessor:} 8... dxc4 9. Nbd2 Nd5 10. e3 b5 11. Ne5 Nxe5 12. fxe5 {½-½ (39) Velten,P (2496)-Ollier,P (2362) Hourtin 2016}) 9. e3 {[%emt 0:00:48]} Ng6 {[%emt 0:00:17]} 10. Nbd2 {[%emt 0:00:45]} h5 {[%emt 0:01:43]} 11. Ne5 {[%emt 0:09:02]} Ne7 {[%emt 0:11:28]} 12. Ndf3 {[%emt 0:13:14]} Ne4 {[%emt 0:06:00]} 13. Qc2 {[%emt 0:14:35]} f6 {[%emt 0:02:22]} 14. Nd3 {[%emt 0:00:53]} O-O {[%emt 0:09:28]} 15. Kh1 {[%emt 0:01:46]} b6 {[%emt 0:01:42]} 16. b3 {[%emt 0:04:56]} Bd7 {[%emt 0:19:31]} 17. Rg1 {[%emt 0:00:43]} c5 {[%emt 0:04:08]} 18. dxc5 {[%emt 0:08:00]} bxc5 {[%emt 0:00:40]} 19. Nh4 {[%emt 0:02:08]} Rc8 {[%emt 0:08:00]} 20. cxd5 $16 {[%emt 0:14:36]} exd5 {[%emt 0:00:12]} 21. Bxe4 {[%emt 0:00:20]} dxe4 {[%emt 0:00:05]} 22. Nxc5 {[%emt 0:00:51]} Be8 {[%emt 0:11:21]} 23. Ne6 {[%emt 0:08:24]} Rxc2 {[%emt 0:00:11]} 24. Nxd8 {[%emt 0:00:05]} Bd7 {[%emt 0:01:51]} 25. Nb7 {[%emt 0:00:23]} Rxf2 {[%emt 0:03:46]} 26. Nc5 {[%emt 0:01:01]} Bg4 {[%emt 0:04:20]} 27. Nxe4 {[%emt 0:00:53]} Bf3+ {[%emt 0:00:02]} 28. Nxf3 {[%emt 0:00:17]} Rxf3 {[%emt 0:00:03]} 29. Rg3 {[%emt 0:00:48]} Rxg3 {[%emt 0:00:21]} 30. hxg3 {[%emt 0:00:45]} Nf5 {[%emt 0:00:13]} 31. Re1 {[%emt 0:00:50]} Re8 {[%emt 0:00:01]} 32. Nc3 {[%emt 0:00:30]} Nxg3+ {[%emt 0:01:32]} 33. Kg2 {[%emt 0:00:20]} Rc8 {[%emt 0:07:13]} 34. Kxg3 {[%emt 0:00:34]} Rxc3 {[%emt 0:00:02]} 35. Re2 {[%emt 0:00:21]} Kh7 {[%emt 0:03:24]} 36. Kf3 {[%emt 0:00:18]} g5 {[%emt 0:00:44]} 37. fxg5 {[%emt 0:00:32]} fxg5 {[%emt 0:00:01]} 38. Rd2 {[%emt 0:00:21]} Rc7 {[%emt 0:00:29]} 39. Rd6 {[%emt 0:00:26]} g4+ {[%emt 0:00:51]} 40. Kf4 {[%emt 0:01:00]} Rf7+ {[%emt 0:00:15]} 41. Kg3 {[%emt 0:09:12]} Rf3+ {[%emt 0:12:50]} 42. Kh4 {[%emt 0:04:03]} g3 {[%emt 0:06:19]} 43. Rd5 {[%emt 0:04:50]} Rxe3 {[%emt 0:06:34]} 44. Rxh5+ {[%emt 0:00:14]} Kg6 {[%emt 0:00:01]} 45. Rg5+ {[%emt 0:00:08]} Kf6 {[%emt 0:00:14]} 46. Rxg3 {[%emt 0:00:29]} Rxg3 {[%emt 0:00:02]} 47. Kxg3 {[%emt 0:00:01]} Ke5 {[%emt 0:00:02]} 48. Kf3 {[%emt 0:03:58]} Kd4 {[%emt 0:00:02]} 49. Ke2 {[%emt 0:01:30]} Kc3 {[%emt 0:00:02]} 50. Ke3 {[%emt 0:02:44]} a5 {[%emt 0:01:54]} 51. Ke4 {[%emt 0:00:57]} a4 {[%emt 0:00:12]} 52. bxa4 {[%emt 0:00:20]} Kb4 {[%emt 0:00:02]} 53. Kd3 {[%emt 0:00:11]} Kxa4 {[%emt 0:00:09]} 54. Ke4 {[%emt 0:00:15]} 1/2-1/2

[Event "NED-ch U16 Youth 2019"]
[Site "Assen"]
[Date "2019.04.29"]
[Round "2.7"]
[White "Broersma, Sven"]
[Black "Cchung, Chi Yun"]
[Result "0-1"]
[ECO "E70"]
[WhiteElo "1617"]
[BlackElo "1836"]
[Annotator "NA RC"]
[PlyCount "62"]
[EventDate "2019.04.28"]
[EventType "swiss"]
[EventCountry "NED"]
[SourceTitle "playchess.com"]
[Source "ChessBase"]
[SourceQuality "1"]
[TimeControl "40/5400+30:1800+30"]

1. d4 {[%emt 0:00:00]} Nf6 {[%emt 0:00:00]} 2. c4 {[%emt 0:00:00]} g6 {[%emt 0:00:00]} 3. Nc3 {[%emt 0:00:00]} Bg7 {[%emt 0:00:00]} 4. e4 {[%emt 0:00:00]} d6 {[%emt 0:00:00]} 5. Nge2 {[%emt 0:00:00]} O-O {[%emt 0:02:58]} 6. Ng3 {[%emt 0:00:00]} e5 {[%emt 0:01:28]} 7. d5 {[%emt 0:00:07]} Nbd7 {[%emt 0:02:03]} 8. Be2 {[%emt 0:00:11]} a5 {[%emt 0:03:12]} 9. h4 {[%emt 0:00:18]} Nc5 {[%emt 0:16:58]} 10. h5 {[%emt 0:04:52] E70: King's Indian: Miscellaneous lines with 4 e4, including 5 Nge2 and 5 Bd3 0-0 6 Nge2} c6 {[%emt 0:01:58]} 11. hxg6 {[%emt 0:03:34]} fxg6 {[%emt 0:04:39]} 12. Bg5 {[%emt 0:12:57]} cxd5 {[%emt 0:12:10]} 13. Nxd5 $146 {[%emt 0:09:36]} ({Predecessor:} 13. exd5 Bd7 14. Qd2 Qb6 15. Be3 Qc7 {½-½ (25) Kroll,O (2310)-Kozlov,V (2365) ICCF email 2007}) 13... Be6 {[%emt 0:16:14]} 14. Nxf6+ {[%emt 0:28:32]} (14. f3 $14) 14... Bxf6 {[%emt 0:00:39]} 15. Bxf6 {[%emt 0:00:07]} Qxf6 {[%emt 0:04:08]} 16. O-O {[%emt 0:01:05]} Rad8 {[%emt 0:05:40]} 17. Rc1 {[%emt 0:05:19]} ({Better is} 17. Qd2 $15) 17... Qg5 {[%emt 0:06:48]} 18. Rc3 {[%emt 0:06:09]} h5 {[%emt 0:01:31]} 19. Nxh5 {[%emt 0:04:32]} Nxe4 {[%emt 0:00:43]} 20. Re3 {[%emt 0:00:52]} Nxf2 {[%emt 0:02:34]} 21. Qb3 {[%emt 0:01:27]} Ng4 {[%emt 0:11:03]} ({Less strong is} 21... gxh5 22. Rxf2 Rxf2 23. Kxf2 $17) 22. Bxg4 {[%emt 0:00:26]} Rxf1+ {[%emt 0:00:11]} ({Less strong is} 22... Bxg4 23. Ng3 $17) 23. Kxf1 {[%emt 0:00:07]} Rf8+ $17 {[%emt 0:01:23]} (23... Bxg4 $19 {is more deadly.} 24. Ng3 Rf8+ 25. Kg1 Qf4) 24. Rf3 $2 {[%emt 0:02:11]} (24. Bf3 $17) 24... Qxg4 {[%emt 0:02:07]} 25. Rxf8+ {[%emt 0:01:54]} Kxf8 {[%emt 0:00:07]} 26. Qxb7 {[%emt 0:01:23]} Qxh5 {[%emt 0:01:42]} 27. Qb8+ {[%emt 0:01:04]} Ke7 {[%emt 0:00:43]} 28. Qc7+ {[%emt 0:00:09]} Bd7 {[%emt 0:00:09]} 29. Qxa5 {[%emt 0:00:49]} Qd1+ {[%emt 0:00:25]} 30. Kf2 {[%emt 0:00:06]} Qd4+ {[%emt 0:00:11]} 31. Kg3 {[%emt 0:00:37]} Qf4# {[%emt 0:00:25]} 0-1

[Event "NED-ch U16 Youth 2019"]
[Site "Assen"]
[Date "2019.04.29"]
[Round "2.8"]
[White "Gevorkjan, Lewon"]
[Black "Van Wijngaarden, Frank"]
[Result "1/2-1/2"]
[ECO "A09"]
[WhiteElo "1808"]
[BlackElo "1774"]
[Annotator "NA RC"]
[PlyCount "136"]
[EventDate "2019.04.28"]
[EventType "swiss"]
[EventCountry "NED"]
[SourceTitle "playchess.com"]
[Source "ChessBase"]
[SourceQuality "1"]
[TimeControl "40/5400+30:1800+30"]

1. Nf3 {[%emt 0:00:00]} d5 {[%emt 0:00:11]} 2. e3 {[%emt 0:00:00]} c5 {[%emt 0:00:30]} 3. c4 {[%emt 0:00:38]} d4 {[%emt 0:01:24]} 4. b4 {[%emt 0:00:40]} cxb4 {[%emt 0:11:17]} (4... dxe3 5. fxe3 cxb4 6. d4 Nf6 7. Bd3 g6 8. a3 bxa3 9. O-O Bg7 10. Nc3 O-O 11. Bxa3 b6 12. Kh1 Nc6 13. Rc1 Bg4 14. h3 Bxf3 15. Qxf3 {1-0 (45) Wei,Y (2735)-Inarkiev,E (2690) Magas 2018}) 5. Nxd4 {[%emt 0:03:36]} e5 {[%emt 0:01:16]} 6. Nf3 {[%emt 0:00:08] A09: Réti Opening: 1 Nf3 d5 2 c4} Nc6 {[%emt 0:01:54]} 7. Bb2 {[%emt 0:00:20]} Bg4 {[%emt 0:05:33]} 8. Be2 {[%emt 0:00:26]} Qa5 $146 {[%emt 0:04:31]} ({Predecessor:} 8... e4 9. Nd4 Bxe2 10. Qxe2 Ne5 11. O-O Nd3 12. Bc1 {1-0 (49) Hoerig,D-Windelband,J Germany 1998}) 9. O-O {[%emt 0:06:26]} Nf6 {[%emt 0:02:12]} 10. d4 {[%emt 0:00:20]} e4 {[%emt 0:14:26]} 11. Nfd2 {[%emt 0:03:29]} Bxe2 {[%emt 0:00:20]} 12. Qxe2 {[%emt 0:00:12]} Qg5 {[%emt 0:00:45]} 13. f4 {[%emt 0:02:21]} Qg6 {[%emt 0:04:56]} 14. d5 {[%emt 0:03:08]} Nb8 {[%emt 0:02:52]} 15. a3 {[%emt 0:06:13]} Nbd7 {[%emt 0:03:46]} 16. Nb3 {[%emt 0:01:45]} Be7 {[%emt 0:03:50]} 17. axb4 {[%emt 0:04:37]} Bxb4 {[%emt 0:00:20]} 18. Bc3 {[%emt 0:00:13]} Be7 {[%emt 0:01:52]} 19. Bd4 {[%emt 0:01:58]} O-O {[%emt 0:02:24]} 20. Nc3 {[%emt 0:03:05]} a6 {[%emt 0:00:47]} 21. c5 {[%emt 0:06:21]} Ng4 $2 {[%emt 0:06:31]} (21... Rfc8 $16) 22. f5 {[%emt 0:05:16]} Qg5 {[%emt 0:05:42]} 23. Nxe4 {[%emt 0:00:13]} Qh4 {[%emt 0:00:06]} 24. h3 {[%emt 0:00:38]} Ngf6 {[%emt 0:03:47]} 25. Rf4 {[%emt 0:03:15]} Qh6 {[%emt 0:00:41]} 26. d6 {[%emt 0:01:31]} Bd8 {[%emt 0:00:17]} 27. Nc3 {[%emt 0:00:33]} Re8 {[%emt 0:02:04]} 28. Rf3 {[%emt 0:01:23]} Rc8 {[%emt 0:03:29]} 29. e4 {[%emt 0:02:34]} Ne5 {[%emt 0:01:26]} 30. Re3 {[%emt 0:00:55]} Nfd7 $18 {[%emt 0:01:34]} 31. Nd5 {[%emt 0:00:53]} Nc6 {[%emt 0:02:17]} 32. Bc3 {[%emt 0:02:00]} Nce5 {[%emt 0:00:49]} 33. Bxe5 {[%emt 0:05:28]} Rxe5 {[%emt 0:00:28]} 34. Rc3 {[%emt 0:00:59]} Bf6 {[%emt 0:00:44]} 35. Nxf6+ {[%emt 0:02:39]} Qxf6 {[%emt 0:00:23]} 36. Re1 {[%emt 0:12:32]} h6 {[%emt 0:02:25]} 37. Qd2 {[%emt 0:01:43]} Qh4 {[%emt 0:00:40]} 38. Qe3 {[%emt 0:01:59]} Rce8 {[%emt 0:01:18]} 39. Rc4 {[%emt 0:00:37]} Rxf5 {[%emt 0:01:28]} 40. Nd4 {[%emt 0:01:25]} Rf6 {[%emt 0:04:58]} 41. Nf3 {[%emt 0:30:55]} Qg3 {[%emt 0:31:27]} 42. Re2 {[%emt 0:03:07]} Rf4 {[%emt 0:00:00]} 43. Nd2 {[%emt 0:00:00]} Qxe3+ {[%emt 0:00:00]} 44. Rxe3 {[%emt 0:00:00]} Rf5 {[%emt 0:00:00]} 45. Rec3 {[%emt 0:00:00]} Rf6 {[%emt 0:00:00]} 46. Rb4 {[%emt 0:00:00]} Rb8 {[%emt 0:00:00]} 47. Nb3 {[%emt 0:00:00]} b6 {[%emt 0:00:00]} 48. c6 {[%emt 0:00:00]} Rxd6 {[%emt 0:00:00]} 49. cxd7 {[%emt 0:00:00]} Rxd7 {[%emt 0:00:00]} 50. Rc6 {[%emt 0:00:00]} Rd1+ {[%emt 0:00:00]} 51. Kh2 {[%emt 0:00:00]} Rb1 {[%emt 0:00:00]} 52. Rbxb6 {[%emt 0:00:00]} Rxb6 {[%emt 0:00:00]} 53. Rxb6 {[%emt 0:00:00]} a5 {[%emt 0:00:00]} 54. Rb7 {[%emt 0:00:00]} a4 {[%emt 0:00:00]} 55. Nc5 {[%emt 0:00:00]} Rxb7 {[%emt 0:00:00]} 56. Nxb7 {[%emt 0:00:00]} a3 {[%emt 0:00:00]} 57. Nc5 {[%emt 0:00:00]} a2 {[%emt 0:00:00]} 58. Nb3 {[%emt 0:00:00]} Kf8 {[%emt 0:00:03]} 59. Kg3 {[%emt 0:00:00]} Ke7 {[%emt 0:00:01]} 60. Kf3 {[%emt 0:00:00]} Ke6 {[%emt 0:00:01]} 61. Ke3 {[%emt 0:00:00]} Ke5 {[%emt 0:00:14]} 62. g3 {[%emt 0:00:00]} h5 {[%emt 0:00:29]} 63. Na1 {[%emt 0:00:00]} g6 {[%emt 0:01:23]} 64. Nb3 {[%emt 0:00:00]} f5 {[%emt 0:00:26]} 65. exf5 {[%emt 0:00:00]} gxf5 {[%emt 0:04:25]} 66. Na1 {[%emt 0:00:04]} h4 {[%emt 0:00:35]} 67. gxh4 {[%emt 0:08:06]} Kf6 {[%emt 0:00:07]} 68. Kf4 {[%emt 0:00:10]} Kg6 {[%emt 0:00:00] Ke4} 1/2-1/2